[Event "SWE-ch Masters 2018"]
[Site "Ronneby"]
[Date "2018.06.30"]
[Round "1"]
[White "Walinder, Lars"]
[Black "Svorono, Gabriel"]
[Result "1-0"]
[ECO "A34"]
[WhiteElo "2231"]
[BlackElo "2105"]
[Annotator "NA"]
[PlyCount "43"]
[EventDate "2018.06.30"]
[EventType "tourn"]
[EventCountry "SWE"]
[SourceTitle "playchess.com"]
[Source "ChessBase"]
[SourceQuality "1"]
[TimeControl "40/5400+30:1800+30"]

1. c4 {[%emt 0:00:00]} Nf6 {[%emt 0:00:00]} 2. Nc3 {[%emt 0:00:00]} c5 {[%emt 0:00:14]} 3. Nf3 {[%emt 0:00:22]} d5 {[%emt 0:00:12]} 4. cxd5 {[%emt 0:00:33]} Nxd5 {[%emt 0:00:06]} 5. e3 {[%emt 0:01:16]} e6 {[%emt 0:03:11]} 6. Bc4 {[%emt 0:01:26]} Nc6 {[%emt 0:03:08]} 7. O-O {[%emt 0:00:28]} Be7 {[%emt 0:00:39]} 8. d4 {[%emt 0:02:12]} cxd4 {[%emt 0:01:19]} 9. exd4 {[%emt 0:00:33]} O-O {[%emt 0:00:20]} 10. Bb3 {[%emt 0:14:00]} Re8 {[%emt 0:15:31]} 11. Re1 {[%emt 0:01:54]} a6 {[%emt 0:02:30]} 12. a3 {[%emt 0:17:05]} g6 {[%emt 0:09:40]} 13. Ne4 {[%emt 0:03:32]} b6 {[%emt 0:02:51]} 14. h4 {[%emt 0:04:35]} Nf6 {[%emt 0:05:04]} 15. Neg5 {[%emt 0:03:08]} h6 {[%emt 0:11:00]} 16. Nxe6 {[%emt 0:25:34]} Bxe6 {[%emt 0:05:04]} 17. Bxe6 {[%emt 0:00:23]} fxe6 {[%emt 0:00:09]} 18. Qc2 {[%emt 0:00:25]} Qd5 {[%emt 0:08:54]} 19. Qxg6+ {[%emt 0:02:33]} Kh8 {[%emt 0:00:03]} 20. Re5 {[%emt 0:08:20]} Nxe5 {[%emt 0:08:28]} 21. Nxe5 {[%emt 0:00:58]} Rf8 {[%emt 0:00:08]} 22. Bxh6 {[%emt 0:00:20]} 1-0

[Event "SWE-ch Masters 2018"]
[Site "Ronneby"]
[Date "2018.06.30"]
[Round "1"]
[White "Wengholm, Anders"]
[Black "Andersson, Paul"]
[Result "1-0"]
[ECO "A05"]
[WhiteElo "2186"]
[BlackElo "2099"]
[Annotator "NA"]
[PlyCount "81"]
[EventDate "2018.06.30"]
[EventType "tourn"]
[EventCountry "SWE"]
[SourceTitle "playchess.com"]
[Source "ChessBase"]
[SourceQuality "1"]
[TimeControl "40/5400+30:1800+30"]

1. Nf3 {[%emt 0:00:00]} Nf6 {[%emt 0:00:28]} 2. c4 {[%emt 0:00:04]} c5 {[%emt 0:00:19]} 3. Nc3 {[%emt 0:00:46]} g6 {[%emt 0:00:13]} 4. e4 {[%emt 0:00:19]} Bg7 {[%emt 0:01:17]} 5. d4 {[%emt 0:00:43]} cxd4 {[%emt 0:00:25]} 6. Nxd4 {[%emt 0:00:25]} d6 {[%emt 0:00:34]} 7. Be2 {[%emt 0:00:22]} O-O {[%emt 0:00:17]} 8. O-O {[%emt 0:00:17]} Nc6 {[%emt 0:04:01]} 9. Be3 {[%emt 0:00:50]} Bd7 {[%emt 0:01:02]} 10. Qd2 {[%emt 0:00:40]} Rc8 {[%emt 0:04:30]} 11. f3 {[%emt 0:02:20]} a6 {[%emt 0:07:28]} 12. Rab1 {[%emt 0:20:55]} Nxd4 {[%emt 0:07:52]} 13. Bxd4 {[%emt 0:01:36]} Be6 {[%emt 0:01:30]} 14. b3 {[%emt 0:01:58]} Nd7 {[%emt 0:05:50]} 15. Bxg7 {[%emt 0:09:28]} Kxg7 {[%emt 0:00:03]} 16. f4 {[%emt 0:00:33]} f6 {[%emt 0:06:47]} 17. Nd5 {[%emt 0:20:15]} Bf7 {[%emt 0:08:17]} 18. Rbd1 {[%emt 0:05:07]} Nc5 {[%emt 0:03:27]} 19. Qe3 {[%emt 0:03:53]} e6 {[%emt 0:11:19]} 20. Nc3 {[%emt 0:00:25]} Qe7 {[%emt 0:00:11]} 21. Rd2 {[%emt 0:02:09]} Rfd8 {[%emt 0:02:51]} 22. Rfd1 {[%emt 0:06:24]} e5 {[%emt 0:07:41]} 23. f5 {[%emt 0:00:26]} a5 {[%emt 0:00:12]} 24. h4 {[%emt 0:03:21]} Na6 {[%emt 0:02:12]} 25. Qb6 {[%emt 0:03:02]} Rc6 {[%emt 0:06:22]} 26. Qxa5 {[%emt 0:01:31]} Rd7 {[%emt 0:04:49]} 27. Bf3 {[%emt 0:03:14]} Qe8 {[%emt 0:04:25]} 28. Nb5 {[%emt 0:02:24]} Qe7 {[%emt 0:02:18]} 29. Qa3 {[%emt 0:01:57]} Nc5 {[%emt 0:01:02]} 30. g4 {[%emt 0:02:15]} h5 {[%emt 0:02:39]} 31. Nc3 {[%emt 0:00:51]} gxf5 {[%emt 0:00:29]} 32. gxf5 {[%emt 0:00:18]} Rd8 {[%emt 0:02:27]} 33. Qb2 {[%emt 0:02:19]} Rg8 {[%emt 0:00:38]} 34. Rg2+ {[%emt 0:00:26]} Kf8 {[%emt 0:00:20]} 35. Rxg8+ {[%emt 0:00:21]} Bxg8 {[%emt 0:00:45]} 36. Kh2 {[%emt 0:03:14]} Qg7 {[%emt 0:00:46]} 37. Qd2 {[%emt 0:00:09]} b6 {[%emt 0:01:15]} 38. Rg1 {[%emt 0:00:54]} Qh7 {[%emt 0:01:02]} 39. Kh3 {[%emt 0:00:56]} Bf7 {[%emt 0:00:14]} 40. Nd5 {[%emt 0:00:36]} Nd7 {[%emt 0:00:45]} 41. Nb4 {[%emt 0:30:17]} 1-0

[Event "SWE-ch Masters 2018"]
[Site "Ronneby"]
[Date "2018.06.30"]
[Round "1"]
[White "Adler, Bo"]
[Black "Mattsson, Michael"]
[Result "1-0"]
[ECO "D10"]
[WhiteElo "2177"]
[BlackElo "2032"]
[Annotator "NA"]
[PlyCount "47"]
[EventDate "2018.06.30"]
[EventType "tourn"]
[EventCountry "SWE"]
[SourceTitle "playchess.com"]
[Source "ChessBase"]
[SourceQuality "1"]
[TimeControl "40/5400+30:1800+30"]

1. d4 d5 {[%emt 0:18:07]} 2. c4 {[%emt 0:02:55]} c6 {[%emt 0:00:05]} 3. cxd5 {[%emt 0:00:56]} cxd5 {[%emt 0:00:08]} 4. Bg5 {[%emt 0:00:05]} Qa5+ {[%emt 0:04:25]} 5. Nc3 {[%emt 0:04:44]} Nf6 {[%emt 0:03:34]} 6. Bxf6 {[%emt 0:00:51]} gxf6 {[%emt 0:01:10]} 7. e3 {[%emt 0:00:12]} Nc6 {[%emt 0:02:10]} 8. a3 {[%emt 0:09:34]} Bg7 {[%emt 0:04:59]} 9. Bd3 {[%emt 0:10:52]} e5 {[%emt 0:08:52]} 10. Nge2 {[%emt 0:09:15]} Be6 {[%emt 0:07:38]} 11. O-O {[%emt 0:01:37]} O-O {[%emt 0:01:36]} 12. Ng3 {[%emt 0:06:04]} exd4 {[%emt 0:06:16]} 13. exd4 {[%emt 0:04:02]} Nxd4 {[%emt 0:01:28]} 14. Bxh7+ {[%emt 0:22:01]} Kxh7 {[%emt 0:00:07]} 15. Qxd4 {[%emt 0:00:03]} Rac8 {[%emt 0:09:34]} 16. Qh4+ {[%emt 0:02:49]} Kg8 {[%emt 0:00:21]} 17. Nh5 {[%emt 0:00:40]} Rc4 {[%emt 0:03:40]} 18. f4 {[%emt 0:06:28]} Qc5+ {[%emt 0:12:15]} 19. Kh1 {[%emt 0:00:08]} Rc8 {[%emt 0:05:05]} 20. Qg3 {[%emt 0:01:09]} Qf8 {[%emt 0:00:36]} 21. f5 {[%emt 0:02:36]} Kh8 {[%emt 0:01:50]} 22. fxe6 {[%emt 0:01:52]} fxe6 {[%emt 0:00:05]} 23. Nxg7 {[%emt 0:00:20]} Qxg7 {[%emt 0:00:48]} 24. Qh3+ {[%emt 0:00:13]} 1-0

[Event "SWE-ch Masters 2018"]
[Site "Ronneby"]
[Date "2018.06.30"]
[Round "1"]
[White "Tiger Norqvist, Axel"]
[Black "Lindvall, Johannes"]
[Result "1/2-1/2"]
[ECO "C55"]
[WhiteElo "2158"]
[BlackElo "2010"]
[Annotator "NA"]
[PlyCount "78"]
[EventDate "2018.06.30"]
[EventType "tourn"]
[EventCountry "SWE"]
[SourceTitle "playchess.com"]
[Source "ChessBase"]
[SourceQuality "1"]
[TimeControl "40/5400+30:1800+30"]

1. e4 {[%emt 0:00:00]} e5 {[%emt 0:01:09]} 2. Nf3 {[%emt 0:00:00]} Nc6 {[%emt 0:00:54]} 3. d4 {[%emt 0:00:00]} exd4 {[%emt 0:00:07]} 4. Bc4 {[%emt 0:00:08]} Nf6 {[%emt 0:00:56]} 5. e5 {[%emt 0:00:20]} d5 {[%emt 0:00:12]} 6. Bb5 {[%emt 0:00:09]} Ne4 {[%emt 0:00:14]} 7. Nxd4 {[%emt 0:00:25]} Bd7 {[%emt 0:00:06]} 8. Bxc6 {[%emt 0:00:08]} bxc6 {[%emt 0:00:09]} 9. O-O {[%emt 0:00:09]} Bc5 {[%emt 0:01:19]} 10. f3 {[%emt 0:01:07]} Ng5 {[%emt 0:04:39]} 11. f4 {[%emt 0:00:18]} Ne4 {[%emt 0:00:06]} 12. Be3 {[%emt 0:00:35]} Bb6 {[%emt 0:05:22]} 13. Nc3 {[%emt 0:04:30]} Nxc3 {[%emt 0:04:40]} 14. bxc3 {[%emt 0:00:18]} O-O {[%emt 0:07:33]} 15. Qd2 {[%emt 0:02:43]} f6 {[%emt 0:03:11]} 16. Rae1 {[%emt 0:08:05]} fxe5 {[%emt 0:04:11]} 17. fxe5 {[%emt 0:00:05]} Rxf1+ {[%emt 0:01:55]} 18. Rxf1 {[%emt 0:00:09]} Qe7 {[%emt 0:05:30]} 19. e6 {[%emt 0:01:04]} Bxe6 {[%emt 0:11:08]} 20. Nxc6 {[%emt 0:04:12]} Qd6 {[%emt 0:08:02]} 21. Nd4 {[%emt 0:02:40]} Re8 {[%emt 0:05:35]} 22. Qf2 {[%emt 0:07:57]} Qd7 {[%emt 0:05:19]} 23. Nb3 {[%emt 0:32:24]} Bf7 {[%emt 0:09:07]} 24. Nc5 {[%emt 0:05:46]} Qe7 {[%emt 0:00:15]} 25. Bd4 {[%emt 0:00:11]} Bg6 {[%emt 0:00:37]} 26. h3 {[%emt 0:08:05]} Bxc2 {[%emt 0:10:26]} 27. Qxc2 {[%emt 0:01:57]} Bxc5 {[%emt 0:00:05]} 28. Qf5 {[%emt 0:01:25]} c6 {[%emt 0:01:18]} 29. Bxc5 {[%emt 0:02:57]} Qxc5+ {[%emt 0:00:06]} 30. Kh1 {[%emt 0:00:06]} Qe7 {[%emt 0:00:09]} 31. Qd3 {[%emt 0:01:43]} Qe2 {[%emt 0:02:01]} 32. Qf5 {[%emt 0:00:03]} Qe7 {[%emt 0:02:44]} 33. Qd3 {[%emt 0:00:20]} Qe4 {[%emt 0:01:07]} 34. Qg3 {[%emt 0:01:20]} Qe2 {[%emt 0:02:35]} 35. Qf4 {[%emt 0:00:57]} Qe7 {[%emt 0:00:14]} 36. Qa4 {[%emt 0:02:04]} Qc5 {[%emt 0:01:20]} 37. Qg4 {[%emt 0:01:21]} Qe7 {[%emt 0:03:09]} 38. Qa4 {[%emt 0:01:07]} Qc5 {[%emt 0:00:42]} 39. Qg4 {[%emt 0:00:08]} Qe7 {[%emt 0:00:28]} 1/2-1/2

[Event "SWE-ch Masters 2018"]
[Site "Ronneby"]
[Date "2018.06.30"]
[Round "1"]
[White "Neretljak, Nedzad"]
[Black "Nordahl, Nils"]
[Result "1-0"]
[ECO "B90"]
[WhiteElo "2108"]
[BlackElo "1839"]
[Annotator "NA"]
[PlyCount "53"]
[EventDate "2018.06.30"]
[EventType "tourn"]
[EventCountry "SWE"]
[SourceTitle "playchess.com"]
[Source "ChessBase"]
[SourceQuality "1"]
[TimeControl "40/5400+30:1800+30"]

1. e4 {[%emt 0:00:00]} c5 {[%emt 0:00:00]} 2. Nf3 {[%emt 0:00:00]} d6 {[%emt 0:00:14]} 3. d4 {[%emt 0:00:00]} cxd4 {[%emt 0:00:06]} 4. Nxd4 {[%emt 0:00:00]} Nf6 {[%emt 0:00:23]} 5. Nc3 {[%emt 0:00:07]} a6 {[%emt 0:00:39]} 6. a4 {[%emt 0:01:25]} Nc6 {[%emt 0:01:16]} 7. Be2 {[%emt 0:01:22]} Bd7 {[%emt 0:01:16]} 8. O-O {[%emt 0:00:55]} g6 {[%emt 0:01:07]} 9. f4 {[%emt 0:06:15]} Bg7 {[%emt 0:02:31]} 10. Be3 {[%emt 0:00:51]} O-O {[%emt 0:00:44]} 11. Nb3 {[%emt 0:00:41]} Be6 {[%emt 0:10:51]} 12. Bf3 {[%emt 0:03:57]} Bxb3 {[%emt 0:03:41]} 13. cxb3 {[%emt 0:00:08]} Nd7 {[%emt 0:00:22]} 14. Rf2 {[%emt 0:04:00]} Qa5 {[%emt 0:07:27]} 15. Rc1 {[%emt 0:03:54]} Rfd8 {[%emt 0:01:48]} 16. Nd5 {[%emt 0:00:42]} Re8 {[%emt 0:03:54]} 17. b4 {[%emt 0:01:03]} Qd8 {[%emt 0:01:37]} 18. b5 {[%emt 0:00:32]} axb5 {[%emt 0:03:07]} 19. axb5 {[%emt 0:00:08]} e6 {[%emt 0:05:13]} 20. bxc6 {[%emt 0:00:29]} bxc6 {[%emt 0:00:19]} 21. Nc3 {[%emt 0:04:41]} d5 {[%emt 0:00:19]} 22. exd5 {[%emt 0:01:58]} cxd5 {[%emt 0:03:08]} 23. Nb5 {[%emt 0:01:20]} Rb8 {[%emt 0:01:18]} 24. Nc7 {[%emt 0:01:14]} Re7 {[%emt 0:01:00]} 25. Bd4 {[%emt 0:01:08]} Nf6 {[%emt 0:03:09]} 26. Rfc2 {[%emt 0:00:31]} Rc8 {[%emt 0:01:41]} 27. Nxe6 1-0

[Event "SWE-ch Masters 2018"]
[Site "Ronneby"]
[Date "2018.06.30"]
[Round "1"]
[White "Palmblad, Jan Peter"]
[Black "Nyander, Joakim"]
[Result "0-1"]
[ECO "B41"]
[WhiteElo "2099"]
[BlackElo "2203"]
[Annotator "NA"]
[PlyCount "98"]
[EventDate "2018.06.30"]
[EventType "tourn"]
[EventCountry "SWE"]
[SourceTitle "playchess.com"]
[Source "ChessBase"]
[SourceQuality "1"]
[TimeControl "40/5400+30:1800+30"]

1. e4 {[%emt 0:00:00]} c5 {[%emt 0:00:00]} 2. Nf3 {[%emt 0:00:00]} e6 {[%emt 0:00:22]} 3. d4 {[%emt 0:00:00]} cxd4 {[%emt 0:00:37]} 4. Nxd4 {[%emt 0:00:09]} a6 {[%emt 0:00:35]} 5. c4 {[%emt 0:00:39]} Nf6 {[%emt 0:01:28]} 6. Nc3 {[%emt 0:00:10]} Qc7 {[%emt 0:00:20]} 7. Be3 {[%emt 0:00:38]} b6 {[%emt 0:02:31]} 8. Rc1 {[%emt 0:00:37]} Bb7 {[%emt 0:00:53]} 9. f3 {[%emt 0:02:07]} Be7 {[%emt 0:01:37]} 10. a3 {[%emt 0:00:34]} O-O {[%emt 0:00:30]} 11. Qd2 {[%emt 0:01:11]} d6 {[%emt 0:02:00]} 12. b4 {[%emt 0:04:19]} Nbd7 {[%emt 0:01:41]} 13. Qf2 {[%emt 0:00:49]} Rac8 {[%emt 0:03:24]} 14. Nb3 {[%emt 0:05:46]} Rfe8 {[%emt 0:05:41]} 15. Na4 {[%emt 0:00:38]} Bd8 {[%emt 0:06:18]} 16. Be2 {[%emt 0:02:00]} Bc6 {[%emt 0:02:26]} 17. b5 {[%emt 0:00:25]} Bb7 {[%emt 0:00:32]} 18. O-O {[%emt 0:00:24]} Nc5 {[%emt 0:06:51]} 19. Naxc5 {[%emt 0:00:10]} dxc5 {[%emt 0:00:28]} 20. a4 {[%emt 0:03:00]} axb5 {[%emt 0:02:11]} 21. cxb5 {[%emt 0:03:49]} Nd7 {[%emt 0:00:56]} 22. Nd2 {[%emt 0:00:35]} Ra8 {[%emt 0:06:51]} 23. Ra1 {[%emt 0:08:09]} Bf6 {[%emt 0:03:08]} 24. Ra2 {[%emt 0:00:32]} Red8 {[%emt 0:00:24]} 25. f4 {[%emt 0:00:32]} Bc3 {[%emt 0:05:27]} 26. Nb1 {[%emt 0:02:28]} Bd4 {[%emt 0:02:48]} 27. Rc1 {[%emt 0:18:35]} e5 {[%emt 0:06:14]} 28. Bxd4 {[%emt 0:02:41]} exd4 {[%emt 0:00:10]} 29. Bd3 {[%emt 0:04:49]} Nf6 {[%emt 0:01:03]} 30. Nd2 {[%emt 0:00:38]} Ng4 {[%emt 0:02:53]} 31. Qg3 {[%emt 0:10:14]} Ne3 {[%emt 0:01:28]} 32. a5 {[%emt 0:03:02]} Rxa5 {[%emt 0:02:33]} 33. Rxa5 {[%emt 0:00:17]} bxa5 {[%emt 0:00:07]} 34. Qg5 {[%emt 0:00:11]} Rc8 {[%emt 0:04:50]} 35. Nc4 {[%emt 0:18:42]} h6 {[%emt 0:07:56]} 36. Qh4 {[%emt 0:00:27]} Nxc4 {[%emt 0:01:38]} 37. Rxc4 {[%emt 0:00:08]} Re8 {[%emt 0:02:41]} 38. f5 {[%emt 0:01:03]} f6 {[%emt 0:01:21]} 39. Qe1 {[%emt 0:01:59]} Bd5 {[%emt 0:09:03]} 40. Ra4 {[%emt 0:00:35]} Qf4 {[%emt 0:03:43]} 41. g3 {[%emt 0:31:42]} Qf3 {[%emt 0:30:53]} 42. Qf1 {[%emt 0:00:00]} Qe3+ {[%emt 0:00:00]} 43. Kg2 {[%emt 0:00:00]} Bxe4+ {[%emt 0:00:00]} 44. Bxe4 {[%emt 0:00:00]} Qxe4+ {[%emt 0:00:00]} 45. Kh3 {[%emt 0:00:00]} Re5 {[%emt 0:00:00]} 46. Rxa5 {[%emt 0:00:00]} Rxf5 {[%emt 0:00:00]} 47. Qc4+ {[%emt 0:00:00]} Kh7 {[%emt 0:00:00]} 48. Qf7 {[%emt 0:00:00]} Qf3 {[%emt 0:00:00]} 49. Kh4 {[%emt 0:00:00]} Rg5 {[%emt 0:00:00]} 0-1

[Event "SWE-ch Masters 2018"]
[Site "Ronneby"]
[Date "2018.06.30"]
[Round "1"]
[White "Tegler, Erik"]
[Black "Laksman, Efraim"]
[Result "1/2-1/2"]
[ECO "B24"]
[WhiteElo "2073"]
[BlackElo "2184"]
[Annotator "NA"]
[PlyCount "60"]
[EventDate "2018.06.30"]
[EventType "tourn"]
[EventCountry "SWE"]
[SourceTitle "playchess.com"]
[Source "ChessBase"]
[SourceQuality "1"]
[TimeControl "40/5400+30:1800+30"]

1. e4 {[%emt 0:00:00]} c5 {[%emt 0:00:00]} 2. Nc3 {[%emt 0:00:00]} Nc6 {[%emt 0:00:00]} 3. g3 {[%emt 0:00:00]} g6 {[%emt 0:00:04]} 4. Bg2 {[%emt 0:00:05]} Bg7 {[%emt 0:00:04]} 5. d3 {[%emt 0:00:12]} Nf6 {[%emt 0:01:05]} 6. Be3 {[%emt 0:00:56]} d6 {[%emt 0:00:11]} 7. h3 {[%emt 0:00:11]} O-O {[%emt 0:00:24]} 8. Qd2 {[%emt 0:00:59]} Nd4 {[%emt 0:02:41]} 9. Nd1 {[%emt 0:02:29]} Nd7 {[%emt 0:02:46]} 10. c3 {[%emt 0:01:20]} Nc6 {[%emt 0:00:09]} 11. Bh6 {[%emt 0:09:45]} Rb8 {[%emt 0:19:00]} 12. Bxg7 {[%emt 0:00:25]} Kxg7 {[%emt 0:00:03]} 13. Ne3 {[%emt 0:06:57]} b5 {[%emt 0:01:14]} 14. Ne2 {[%emt 0:03:05]} b4 {[%emt 0:00:33]} 15. O-O {[%emt 0:01:46]} bxc3 {[%emt 0:07:33]} 16. bxc3 {[%emt 0:00:19]} Ba6 {[%emt 0:11:53]} 17. Rfb1 {[%emt 0:14:50]} Qa5 {[%emt 0:11:12]} 18. Qc2 {[%emt 0:20:36]} Nde5 {[%emt 0:05:47]} 19. Nc1 {[%emt 0:01:43]} Rxb1 {[%emt 0:12:38]} 20. Rxb1 {[%emt 0:00:35]} Rc8 {[%emt 0:00:08]} 21. f4 {[%emt 0:06:55]} Nd7 {[%emt 0:00:28]} 22. Ne2 {[%emt 0:03:57]} Qd8 {[%emt 0:07:53]} 23. Bf1 {[%emt 0:07:26]} Rb8 {[%emt 0:01:25]} 24. Nc1 {[%emt 0:04:14]} Rxb1 {[%emt 0:03:31]} 25. Qxb1 {[%emt 0:00:02]} Qb6 {[%emt 0:00:22]} 26. Qxb6 {[%emt 0:02:19]} Nxb6 {[%emt 0:00:33]} 27. Kf2 {[%emt 0:02:47]} e5 {[%emt 0:00:50]} 28. Nd5 {[%emt 0:03:00]} exf4 {[%emt 0:01:45]} 29. Nxf4 {[%emt 0:00:05]} Bc8 {[%emt 0:02:48]} 30. Ke3 {[%emt 0:01:29]} f5 {[%emt 0:00:54]} 1/2-1/2

[Event "SWE-ch Masters 2018"]
[Site "Ronneby"]
[Date "2018.06.30"]
[Round "1"]
[White "Carlsson, Andreas"]
[Black "Mardell, Jimmy"]
[Result "0-1"]
[ECO "A46"]
[WhiteElo "2029"]
[BlackElo "2173"]
[Annotator "NA"]
[PlyCount "36"]
[EventDate "2018.06.30"]
[EventType "tourn"]
[EventCountry "SWE"]
[SourceTitle "playchess.com"]
[Source "ChessBase"]
[SourceQuality "1"]
[TimeControl "40/5400+30:1800+30"]

1. d4 {[%emt 0:00:00]} Nf6 {[%emt 0:00:00]} 2. Nf3 {[%emt 0:00:00]} e6 {[%emt 0:00:00]} 3. e3 {[%emt 0:00:00]} d5 {[%emt 0:00:52]} 4. c4 {[%emt 0:00:07]} Be7 {[%emt 0:00:43]} 5. g3 {[%emt 0:02:30]} O-O {[%emt 0:01:58]} 6. Bg2 {[%emt 0:00:36]} dxc4 {[%emt 0:01:52]} 7. Ne5 {[%emt 0:00:25]} c5 {[%emt 0:04:58]} 8. O-O {[%emt 0:01:56]} Nc6 {[%emt 0:05:27]} 9. Nxc6 {[%emt 0:01:09]} bxc6 {[%emt 0:00:04]} 10. Bxc6 {[%emt 0:00:17]} Rb8 {[%emt 0:00:22]} 11. dxc5 {[%emt 0:13:31]} Qc7 {[%emt 0:02:46]} 12. Qa4 {[%emt 0:04:29]} Nd5 {[%emt 0:10:42]} 13. e4 {[%emt 0:15:25]} Rb4 {[%emt 0:16:13]} 14. Qa3 {[%emt 0:00:35]} Qxc6 {[%emt 0:00:22]} 15. exd5 {[%emt 0:00:08]} Qxc5 {[%emt 0:00:12]} 16. Be3 {[%emt 0:04:51]} Qxd5 {[%emt 0:01:41]} 17. Bxa7 {[%emt 0:03:31]} Rb7 {[%emt 0:04:10]} 18. Qe3 {[%emt 0:00:28]} Rxa7 {[%emt 0:00:37]} 0-1

[Event "SWE-ch Masters 2018"]
[Site "Ronneby"]
[Date "2018.06.30"]
[Round "1"]
[White "Bit Narva, David"]
[Black "Petersson, Baldur Teodor"]
[Result "0-1"]
[ECO "B40"]
[WhiteElo "1926"]
[BlackElo "2153"]
[Annotator "NA"]
[PlyCount "80"]
[EventDate "2018.06.30"]
[EventType "tourn"]
[EventCountry "SWE"]
[SourceTitle "playchess.com"]
[Source "ChessBase"]
[SourceQuality "1"]
[TimeControl "40/5400+30:1800+30"]

1. e4 {[%emt 0:00:00]} c5 {[%emt 0:00:00]} 2. Nf3 {[%emt 0:00:00]} e6 {[%emt 0:00:00]} 3. b3 {[%emt 0:00:30]} d6 {[%emt 0:01:25]} 4. Bb2 {[%emt 0:00:11]} e5 {[%emt 0:00:10]} 5. c3 {[%emt 0:00:52]} Nf6 {[%emt 0:01:00]} 6. Bd3 {[%emt 0:00:33]} Nc6 {[%emt 0:03:20]} 7. O-O {[%emt 0:00:20]} g6 {[%emt 0:06:24]} 8. Re1 {[%emt 0:07:30]} Bg7 {[%emt 0:07:02]} 9. Bb5 {[%emt 0:01:34]} Bd7 {[%emt 0:20:01]} 10. d4 {[%emt 0:04:33]} O-O {[%emt 0:01:30]} 11. dxc5 {[%emt 0:06:29]} dxc5 {[%emt 0:00:55]} 12. Nbd2 {[%emt 0:08:31]} Qc7 {[%emt 0:03:06]} 13. Bxc6 {[%emt 0:10:53]} Bxc6 {[%emt 0:00:33]} 14. b4 {[%emt 0:01:15]} Rfd8 {[%emt 0:12:52]} 15. Qb3 {[%emt 0:04:03]} Bd7 {[%emt 0:15:24]} 16. Nc4 {[%emt 0:05:00]} Nh5 {[%emt 0:06:55]} 17. Ne3 {[%emt 0:00:32]} Be6 {[%emt 0:00:22]} 18. c4 {[%emt 0:00:59]} cxb4 {[%emt 0:00:39]} 19. Nd5 {[%emt 0:12:45]} Bxd5 {[%emt 0:05:40]} 20. exd5 {[%emt 0:00:09]} f6 {[%emt 0:04:52]} 21. Qxb4 {[%emt 0:14:52]} Rac8 {[%emt 0:02:04]} 22. Rac1 {[%emt 0:01:16]} Bh6 {[%emt 0:00:18]} 23. Rc3 {[%emt 0:04:53]} Nf4 {[%emt 0:00:44]} 24. Qb3 {[%emt 0:06:42]} Qd7 {[%emt 0:01:03]} 25. g3 {[%emt 0:05:50]} Qg4 {[%emt 0:00:31]} 26. Kh1 {[%emt 0:01:49]} Nh3 {[%emt 0:00:50]} 27. Kg2 {[%emt 0:00:34]} e4 {[%emt 0:02:38]} 28. Nd4 {[%emt 0:00:06]} Bd2 {[%emt 0:00:16]} 29. Rce3 {[%emt 0:00:50]} Bxe1 {[%emt 0:00:50]} 30. Rxe1 {[%emt 0:00:05]} Nf4+ {[%emt 0:00:05]} 31. Kg1 {[%emt 0:00:48]} Nd3 {[%emt 0:00:41]} 32. Re3 {[%emt 0:01:01]} Nxb2 {[%emt 0:00:38]} 33. Qxb2 {[%emt 0:00:05]} Qd1+ {[%emt 0:01:16]} 34. Kg2 {[%emt 0:00:01]} Rxc4 {[%emt 0:00:13]} 35. Ne6 {[%emt 0:00:16]} Rc1 {[%emt 0:00:28]} 36. Kh3 {[%emt 0:01:12]} Rxd5 {[%emt 0:00:38]} 37. g4 {[%emt 0:00:33]} h5 {[%emt 0:00:47]} 38. f3 {[%emt 0:00:52]} hxg4+ {[%emt 0:00:48]} 39. fxg4 {[%emt 0:00:01]} Qf1+ {[%emt 0:00:26]} 40. Kh4 {[%emt 0:00:19]} Rd7 {[%emt 0:01:12]} 0-1

[Event "SWE-ch Masters 2018"]
[Site "Ronneby"]
[Date "2018.07.01"]
[Round "2"]
[White "Nyander, Joakim"]
[Black "Adler, Bo"]
[Result "1-0"]
[ECO "A20"]
[WhiteElo "2203"]
[BlackElo "2177"]
[Annotator "NA"]
[PlyCount "73"]
[EventDate "2018.06.30"]
[EventType "tourn"]
[EventCountry "SWE"]
[SourceTitle "playchess.com"]
[Source "ChessBase"]
[SourceQuality "1"]
[TimeControl "40/5400+30:1800+30"]

{[%evp 8,51,22,13,12,17,15,27,36,15,18,0,25,0,3,0,8,0,26,-10,-8,-7,-10,-14,-10,-49,-33,-82,-58,32767,-31,32767,-26,-20,32767,32767,-33,-51,284,0,0,32767,0,-25,32767,-65]} 1. c4 {[%emt 0:00:00]} e5 {[%emt 0:00:30]} 2. g3 {[%emt 0:00:14]} Nf6 {[%emt 0:00:47]} 3. Bg2 {[%emt 0:00:29]} c6 {[%emt 0:07:48]} 4. d4 {[%emt 0:05:53]} exd4 {[%emt 0:00:21]} 5. Qxd4 {[%emt 0:00:49]} d5 {[%emt 0:00:13]} 6. Nf3 {[%emt 0:01:41]} Be6 {[%emt 0:00:18]} 7. O-O {[%emt 0:03:07]} dxc4 {[%emt 0:06:06]} 8. Qxd8+ {[%emt 0:01:25]} Kxd8 {[%emt 0:00:02]} 9. Rd1+ {[%emt 0:07:26] A20: English Opening: 1...e5} Nbd7 {[%emt 0:03:18]} 10. Ng5 {[%emt 0:04:09] LiveBook: 7 Games} Ke8 {[%emt 0:04:14]} 11. Nd2 {[%emt 0:10:19]} (11. Nxe6 fxe6 12. Bg5 Nd5 13. Bh3 Be7 14. Bd2 Bf6 15. Nc3 Ke7 16. Rac1 b5 {0-1 (40) Bocharov,D (2611)-Romanov,E (2619) Sochi 2016}) 11... Ne5 {[%emt 0:02:52]} 12. Nf1 $146 {[%emt 0:08:35]} ({Predecessor:} 12. Nxe6 fxe6 13. Nf3 Nxf3+ 14. Bxf3 Rd8 15. Be3 Rxd1+ 16. Rxd1 Be7 17. Bxa7 {½-½ (50) Kerr,S (2479)-Saglione,E (2427) ICCF email 2013}) 12... Bc5 {[%emt 0:03:38]} 13. Nxe6 {[%emt 0:06:38]} fxe6 {[%emt 0:00:38]} 14. Be3 {[%emt 0:00:14]} Bxe3 {[%emt 0:01:54]} 15. Nxe3 {[%emt 0:00:10]} Nd5 {[%emt 0:00:17]} 16. Nc2 {[%emt 0:03:53]} Ke7 {[%emt 0:08:33]} 17. Rac1 {[%emt 0:09:48]} (17. Rd4 $11) 17... Rad8 {[%emt 0:10:42]} 18. f4 {[%emt 0:18:35]} Ng4 {[%emt 0:00:47]} 19. Bf3 {[%emt 0:00:23]} Nge3 {[%emt 0:03:52]} 20. Nxe3 {[%emt 0:00:40]} Nxe3 {[%emt 0:00:08]} 21. Rxd8 {[%emt 0:00:07]} Rxd8 {[%emt 0:00:13]} ({Of course not} 21... Kxd8 22. Kf2 $14) 22. Rc3 $1 {[%emt 0:00:08]} Rd1+ $2 {[%emt 0:01:04]} (22... Nf5 $15 {stays ahead.}) 23. Kf2 {[%emt 0:00:11]} Nd5 {[%emt 0:00:32]} 24. Rxc4 {[%emt 0:01:11]} Rd2 {[%emt 0:02:42]} 25. Ra4 {[%emt 0:01:34]} Rxb2 {[%emt 0:06:03]} 26. Rxa7 $15 {[%emt 0:00:09]} Kd6 {[%emt 0:04:04]} 27. a4 {[%emt 0:00:40]} Nc7 {[%emt 0:03:15]} 28. h4 {[%emt 0:01:20]} e5 {[%emt 0:11:14]} 29. fxe5+ {[%emt 0:01:23]} Kxe5 {[%emt 0:04:53]} 30. Bxc6 {[%emt 0:00:27]} bxc6 {[%emt 0:10:47]} 31. Rxc7 {[%emt 0:00:15]} Kd6 {[%emt 0:00:10]} 32. Rxg7 {[%emt 0:00:17]} c5 {[%emt 0:00:02]} 33. Rxh7 {[%emt 0:02:14]} c4 {[%emt 0:00:02]} 34. Rh8 {[%emt 0:02:45]} Kd7 {[%emt 0:03:04]} 35. Rg8 {[%emt 0:01:47]} c3 {[%emt 0:00:29]} 36. Ke3 {[%emt 0:01:21]} Rd2 {[%emt 0:01:50]} 37. Rg4 {[%emt 0:00:14]} 1-0